bitfinex/quotes_SOLUSD_20250903
["timestamp","ask_amount","ask_price","bid_price","bid_amount"]
[1756893788971,0.06,209.83,209.82,25.43598989]
[1756893789785,0.06,209.83,209.82,20.67]
[1756893790598,7.00807043,209.83,209.82,20.0]
[1756893790987,0.06,209.83,209.82,20.0]
[1756893791286,7.00807043,209.83,209.82,20.0]
[1756893791689,25.3694272,209.83,209.82,20.0]
[1756893791892,13.59559401,209.82,209.78,20.0]
[1756893792084,6.94807043,209.79,209.78,20.67]
[1756893792778,7.23239357,209.79,209.76,20.0]
[1756893793103,13.87991715,209.76,209.72,20.0]
[1756893793399,6.94807043,209.73,209.72,20.67]
[1756893794400,18.64728532,209.76,209.72,20.67]
[1756893794401,0.28432314,209.76,209.72,20.67]
[1756893794598,0.28432314,209.76,209.71,0.03]
[1756893794599,0.28432314,209.76,209.74,20.0]
[1756893794909,5.11171196,209.76,209.71,0.03]
[1756893795198,13.87991715,209.72,209.71,0.03]
[1756893795788,32.54432045,209.72,209.71,0.03]
[1756893799009,25.59625002,209.72,209.71,0.03]
[1756893799302,20.82798758,209.72,209.71,0.7]
[1756893799676,25.59625002,209.72,209.71,0.03]
[1756893800098,32.54432045,209.72,209.71,0.03]
[1756893800913,32.60432045,209.72,209.71,0.03]
[1756893801085,32.54432045,209.72,209.71,0.03]
[1756893801702,20.82798758,209.72,209.71,0.03]
[1756893801878,20.82798758,209.72,209.71,0.7]
[1756893802085,13.87991715,209.72,209.71,0.7]
[1756893802400,20.82798758,209.72,209.71,0.7]
[1756893803512,25.59625002,209.72,209.71,0.7]
[1756893803892,25.59625002,209.72,209.71,0.03]
[1756893804995,32.54432045,209.72,209.71,0.03]
[1756893805195,44.52497656,209.72,209.68,0.03]
[1756893805394,20.54366444,209.69,209.68,0.03]
[1756893805596,61.19630121,209.69,209.68,0.03]
[1756893806812,65.96524584,209.69,209.68,0.03]
[1756893807896,66.24956898,209.69,209.68,0.03]
[1756893808489,28.80956898,209.69,209.68,0.03]
[1756893808696,66.24956898,209.69,209.68,0.03]
[1756893808920,13.59559401,209.69,209.68,0.7]
[1756893809103,23.75630121,209.69,209.68,0.7]
[1756893809410,13.59559401,209.69,209.68,0.7]
[1756893809718,18.36317446,209.75,209.68,0.7]
[1756893809888,4.47447398,209.7,209.68,0.7]
[1756893810309,4.47447398,209.69,209.68,0.7]
[1756893811306,4.47447398,209.7,209.68,0.7]
[1756893811502,10.1522921,209.7,209.68,0.7]
[1756893814026,23.74788611,209.69,209.68,0.03]
[1756893814319,24.03220925,209.69,209.68,0.03]
[1756893815405,28.80115388,209.69,209.68,0.03]
[1756893819619,54.86115388,209.69,209.68,0.03]
[1756893820221,92.26115388,209.69,209.68,0.03]
[1756893821912,66.32115388,209.69,209.68,0.03]
[1756893822115,66.26115388,209.69,209.68,0.03]
[1756893822708,13.59559401,209.68,209.67,0.03]
[1756893822915,23.80788611,209.68,209.67,0.03]
[1756893823619,0.28432314,209.67,209.66,0.1]
[1756893823800,66.32160878,209.67,209.66,1e-08]
[1756893824000,39.87991715,209.66,209.65,1e-08]
[1756893824226,24.09220925,209.66,209.65,1e-08]
[1756893826110,39.59559401,209.64,209.62,0.03]
[1756893826320,87.49220925,209.64,209.63,1e-08]
[1756893826496,87.55220925,209.64,209.63,1e-08]
[1756893826700,0.28432314,209.63,209.62,1e-08]
[1756893826920,24.09220925,209.63,209.62,1e-08]
[1756893827821,34.24450135,209.63,209.62,1e-08]
[1756893828127,0.28432314,209.58,209.55,0.7]
[1756893828318,23.74788611,209.56,209.55,0.7]
[1756893828631,23.74788611,209.56,209.51,20.0]
[1756893828632,0.28432314,209.55,209.53,0.7]
[1756893828806,13.59559401,209.53,209.51,20.0]
[1756893829009,10.1522921,209.52,209.51,20.0]
[1756893829208,24.03220925,209.52,209.51,20.0]
[1756893829418,24.03220925,209.52,209.51,20.7]
[1756893829605,24.03220925,209.52,209.51,0.7]
[1756893830207,28.8050233,209.52,209.51,0.7]
[1756893830509,24.03220925,209.52,209.51,0.7]
[1756893830833,13.87991715,209.52,209.51,0.7]
[1756893831018,28.8050233,209.52,209.51,0.7]
[1756893831409,24.03220925,209.52,209.51,0.7]
[1756893831809,61.49220925,209.52,209.51,0.7]
[1756893832635,13.87991715,209.52,209.51,0.7]
[1756893832835,24.03220925,209.52,209.51,0.7]
[1756893833423,18.36126587,209.52,209.51,0.7]
[1756893833717,26.0,209.63,209.51,0.7]
[1756893833907,4.48134872,209.57,209.53,20.0]
[1756893834113,18.07694273,209.56,209.54,0.7]
[1756893834338,4.48134872,209.55,209.54,0.7]
[1756893834830,4.48134872,209.57,209.54,0.7]
[1756893835008,4.48134872,209.56,209.54,0.7]
[1756893835934,13.59559401,209.58,209.54,0.7]
[1756893836123,18.07694273,209.58,209.54,0.7]
[1756893836628,4.48134872,209.57,209.54,0.7]
[1756893837010,4.48134872,209.56,209.54,0.7]
[1756893838120,13.87991715,209.56,209.55,0.7]
[1756893838323,18.36126587,209.56,209.55,0.7]
[1756893839524,4.48134872,209.56,209.55,0.7]
[1756893840133,0.14216157,209.57,209.55,0.7]
[1756893840435,13.73775558,209.58,209.56,20.0]
[1756893840635,4.48134872,209.61,209.57,0.7]
[1756893840934,13.59559401,209.6,209.57,0.7]
[1756893841433,0.28432314,209.6,209.57,0.7]
[1756893841632,10.44627258,209.6,209.57,0.7]
[1756893842020,24.04186659,209.58,209.56,20.0]
[1756893842336,24.04186659,209.57,209.56,20.7]
[1756893842836,28.81354192,209.57,209.56,0.7]
[1756893843040,13.87991715,209.56,209.54,20.73]
[1756893843214,13.87991715,209.56,209.54,20.03]
[1756893843410,10.16194944,209.55,209.54,20.73]
[1756893843614,13.87991715,209.56,209.54,20.73]
[1756893843615,24.04186659,209.56,209.54,20.73]
[1756893843816,26.06,209.65,209.55,0.7]
[1756893844030,13.87991715,209.57,209.55,0.7]
[1756893844347,10.16194944,209.62,209.56,30.16194944]
[1756893844518,13.59559401,209.62,209.6,20.0]
[1756893844718,13.59559401,209.62,209.61,0.7]
[1756893844919,23.75754345,209.62,209.61,0.7]
[1756893845743,13.59559401,209.62,209.61,0.7]
[1756893846444,10.16194944,209.63,209.61,0.7]
[1756893846741,13.59559401,209.62,209.61,0.7]
[1756893846944,10.16194944,209.64,209.6,20.0]
[1756893847120,10.16194944,209.64,209.62,0.7]
[1756893847321,23.75754345,209.64,209.63,0.7]
[1756893848443,24.04186659,209.64,209.63,0.7]
[1756893848744,0.28432314,209.65,209.63,0.7]
[1756893849039,13.87991715,209.65,209.64,0.7]
[1756893849624,0.06,209.66,209.64,0.7]
[1756893849837,0.06,209.66,209.65,20.0]
[1756893850039,0.06,209.66,209.65,20.7]
[1756893851644,0.06,209.66,209.65,25.46985451]
[1756893851825,0.06,209.66,209.65,35.63180395]
[1756893852032,0.06,209.66,209.65,25.46985451]
[1756893852230,0.06,209.66,209.65,35.63180395]
[1756893855642,0.06,209.66,209.65,20.7]
[1756893858532,0.06,209.66,209.65,20.0]
[1756893858735,13.87991715,209.65,209.6,20.0]
[1756893858936,10.16194944,209.61,209.6,20.0]
[1756893859750,14.93283588,209.61,209.6,20.0]
[1756893860049,10.16194944,209.61,209.6,20.0]
[1756893861351,0.06,209.64,209.58,20.0]
[1756893861559,10.16194944,209.6,209.57,0.66]
[1756893861845,10.16194944,209.61,209.59,20.0]
[1756893862152,10.16194944,209.61,209.59,20.66]
[1756893862851,10.16194944,209.61,209.59,20.0]
[1756893863339,10.16194944,209.62,209.6,0.66]
[1756893863664,23.75754345,209.61,209.58,20.66]
[1756893863970,10.16194944,209.59,209.56,20.03]
[1756893864126,10.16194944,209.57,209.56,20.03]
[1756893864326,10.16194944,209.57,209.56,0.03]
[1756893864523,10.16194944,209.57,209.56,20.03]
[1756893864948,10.16194944,209.57,209.56,20.69]
[1756893865327,23.81754345,209.57,209.56,0.03]
[1756893865548,25.39843979,209.57,209.56,0.03]
[1756893865729,25.33843979,209.57,209.56,0.03]
[1756893865934,25.39843979,209.57,209.56,0.03]
[1756893866246,26.0,209.58,209.56,0.69]
[1756893866550,6.97117045,209.57,209.56,0.69]
[1756893867244,18.65090951,209.6,209.56,0.69]
[1756893867245,37.8,209.62,209.56,0.69]
[1756893867443,0.28432314,209.59,209.56,20.69]
[1756893867640,7.25549359,209.59,209.56,20.69]
[1756893868043,6.97117045,209.58,209.56,20.03]
[1756893868249,6.97117045,209.58,209.56,20.69]
[1756893868448,6.97117045,209.58,209.57,0.66]
[1756893868748,7.25549359,209.59,209.57,0.66]
[1756893869254,20.56676446,209.58,209.56,20.03]
[1756893869459,7.25549359,209.57,209.56,0.03]
[1756893870944,25.62276293,209.57,209.56,0.03]
[1756893871946,63.44276293,209.57,209.56,0.03]
[1756893873339,63.50276293,209.57,209.56,0.03]
[1756893873656,63.44276293,209.57,209.56,0.03]
[1756893874550,49.84716892,209.57,209.56,0.03]
[1756893874758,63.44276293,209.57,209.56,0.03]
[1756893875168,58.6710876,209.57,209.56,0.03]
[1756893875552,63.44276293,209.57,209.56,0.03]
[1756893876441,56.47159248,209.57,209.56,0.03]
[1756893876773,63.44276293,209.57,209.56,0.03]
[1756893877954,58.6710876,209.57,209.56,0.69]
[1756893878358,6.97117045,209.57,209.56,0.69]
[1756893878664,4.77122674,209.59,209.56,0.69]
[1756893878665,6.97117045,209.59,209.56,0.69]
[1756893878966,11.74265407,209.58,209.56,0.69]
[1756893879651,6.97117045,209.57,209.56,0.69]
[1756893880666,20.8510876,209.58,209.56,0.69]
[1756893881043,20.8510876,209.58,209.56,0.03]
[1756893881256,20.8510876,209.58,209.57,0.66]
[1756893881452,16.74606633,209.58,209.57,0.66]
[1756893881869,21.51751398,209.58,209.57,0.66]
[1756893882463,59.27751398,209.58,209.56,0.03]
[1756893882762,16.46174319,209.57,209.56,0.03]
[1756893883767,21.23341852,209.57,209.56,0.03]
[1756893884155,21.23341852,209.57,209.56,0.7]
[1756893884662,21.23341852,209.57,209.56,0.03]
[1756893884869,16.46174319,209.57,209.56,0.7]
[1756893885061,13.59559401,209.57,209.56,0.7]
[1756893885242,18.36726934,209.57,209.56,0.7]
[1756893885445,21.23341852,209.57,209.56,0.7]
[1756893885640,18.36726934,209.57,209.56,0.7]
[1756893885845,21.23341852,209.57,209.56,0.7]
[1756893886855,18.65159248,209.57,209.56,0.7]
[1756893887055,16.74606633,209.57,209.56,0.7]
[1756893887257,2.86614918,209.58,209.56,0.7]
[1756893887468,37.7,209.59,209.56,0.7]
[1756893887661,13.59559401,209.59,209.57,20.0]
[1756893887853,0.06,209.66,209.58,0.67]
[1756893888055,0.06,209.66,209.61,20.0]
[1756893888262,0.06,209.66,209.62,0.67]
[1756893888453,2.92614918,209.66,209.63,20.0]
[1756893888650,0.06,209.66,209.64,0.67]
[1756893888995,0.06,209.66,209.65,20.0]
[1756893889379,0.06,209.66,209.65,20.67]
[1756893893080,2.92614918,209.66,209.63,20.0]
[1756893893376,16.74606633,209.64,209.63,20.0]
[1756893894866,18.64999919,209.64,209.61,20.67]
[1756893895169,18.64999919,209.64,209.63,20.0]
[1756893896182,21.51614837,209.64,209.63,20.0]
[1756893896674,21.51614837,209.64,209.62,0.67]
[1756893896881,2.86614918,209.63,209.62,0.67]
[1756893897269,2.86614918,209.63,209.61,20.0]
[1756893897471,2.86614918,209.63,209.61,20.67]
[1756893897675,16.46174319,209.62,209.61,20.0]
[1756893897979,16.46174319,209.62,209.58,20.0]
[1756893898157,2.86614918,209.59,209.58,20.67]
[1756893898558,2.86614918,209.6,209.58,20.67]
[1756893898776,16.46174319,209.6,209.59,0.67]
[1756893900879,16.46174319,209.6,209.58,20.0]
[1756893901180,2.86614918,209.59,209.58,20.0]
[1756893901759,2.86614918,209.59,209.58,20.67]
[1756893902177,2.86614918,209.59,209.58,20.0]
[1756893902480,21.51728633,209.59,209.58,20.0]
[1756893903480,13.87991715,209.59,209.58,20.0]
[1756893903781,16.74606633,209.59,209.58,20.0]
[1756893904003,21.51728633,209.59,209.58,20.0]
[1756893904484,13.59559401,209.58,209.57,20.0]
[1756893905196,0.28432314,209.58,209.57,20.0]
[1756893905371,16.80606633,209.58,209.56,0.03]
[1756893905567,45.23782451,209.57,209.56,0.03]
[1756893906780,59.17774166,209.57,209.56,0.03]
[1756893909086,62.88286068,209.57,209.56,0.03]
[1756893910304,1.91364669,209.59,209.56,0.7]
[1756893910600,40.46614918,209.6,209.57,0.67]
[1756893910773,13.59559401,209.59,209.57,0.67]
[1756893910971,2.86614918,209.58,209.56,20.03]
[1756893911192,2.86614918,209.57,209.56,0.03]
[1756893911402,54.08174319,209.57,209.56,0.03]
[1756893911895,59.13774166,209.57,209.56,0.03]
[1756893912072,59.13774166,209.57,209.56,0.69]
[1756893912402,54.36606633,209.57,209.56,0.69]
[1756893912572,59.13774166,209.57,209.56,0.69]
[1756893912773,59.11774166,209.57,209.56,0.69]
[1756893914494,16.74606633,209.57,209.56,0.69]
[1756893914683,16.46174319,209.59,209.58,20.0]
[1756893914993,16.46174319,209.59,209.58,20.66]
[1756893915976,54.04174319,209.59,209.58,20.66]
[1756893916185,2.86614918,209.59,209.58,20.66]
[1756893916584,7.63736918,209.59,209.58,20.66]
[1756893917470,7.63736918,209.59,209.58,20.0]
[1756893918068,0.28432314,209.58,209.56,20.69]
[1756893918275,2.86614918,209.59,209.58,20.0]
[1756893918477,54.28606633,209.59,209.58,20.66]
[1756893918888,51.41991715,209.59,209.58,20.66]
[1756893919197,13.59559401,209.61,209.58,20.66]
[1756893919371,16.46174319,209.61,209.59,0.66]
[1756893919573,16.46174319,209.61,209.6,0.66]
[1756893920071,42.52174319,209.61,209.56,20.03]
[1756893920273,16.46174319,209.57,209.56,20.03]
[1756893920480,54.00174319,209.57,209.56,20.03]
[1756893921092,58.77341852,209.57,209.56,20.03]
[1756893921398,58.77341852,209.57,209.56,0.03]
[1756893922280,59.05774166,209.57,209.56,0.03]
[1756893924592,59.05774166,209.57,209.56,0.69]
[1756893925097,2.86614918,209.57,209.56,0.69]
[1756893925405,53.96174319,209.59,209.56,0.69]
[1756893925581,16.46174319,209.59,209.58,20.0]
[1756893925780,16.74606633,209.59,209.58,20.66]
[1756893926024,2.86614918,209.59,209.58,20.66]
[1756893926176,16.46174319,209.61,209.58,20.66]
[1756893926374,16.46174319,209.61,209.59,0.66]
[1756893926591,16.74606633,209.61,209.6,0.66]
[1756893927376,2.86614918,209.61,209.6,0.66]
[1756893927595,13.93991715,209.62,209.6,20.66]
[1756893927793,18.4167633,209.62,209.61,0.66]
[1756893929390,13.93991715,209.62,209.61,0.66]
[1756893929901,18.4167633,209.62,209.61,0.66]
[1756893930479,23.18730046,209.62,209.58,20.03]
[1756893930699,18.07244016,209.59,209.58,20.03]
[1756893931000,55.57244016,209.59,209.58,20.03]
[1756893932099,55.57244016,209.59,209.58,20.69]
[1756893932306,18.07244016,209.61,209.58,20.69]
[1756893932496,68.03684615,209.62,209.59,0.66]
[1756893932693,4.47684615,209.6,209.59,0.66]
[1756893933081,4.47684615,209.6,209.58,20.03]
[1756893933286,4.47684615,209.59,209.58,20.03]
[1756893933984,55.57244016,209.59,209.58,20.03]
[1756893934216,60.6279833,209.59,209.58,0.03]
[1756893937284,86.6879833,209.59,209.58,0.03]
[1756893939814,49.1279833,209.59,209.58,0.03]
[1756893940117,86.6279833,209.59,209.58,0.03]
[1756893947902,26.0,209.57,209.56,0.03]
[1756893948108,81.57244016,209.57,209.56,0.03]
[1756893948328,81.57244016,209.57,209.55,0.03]
[1756893948329,13.59559401,209.56,209.55,0.03]
[1756893948626,13.59559401,209.54,209.53,0.03]
[1756893948794,55.57244016,209.54,209.53,0.03]
[1756893949198,57.48626998,209.54,209.53,0.03]
[1756893950029,62.25862847,209.54,209.53,0.03]
[1756893950732,66.73547462,209.54,209.53,0.03]
[1756893950913,66.79547462,209.54,209.53,0.03]
[1756893951126,39.59559401,209.51,209.5,0.1]
[1756893951298,44.07244016,209.48,209.47,0.1]
[1756893951498,81.57244016,209.48,209.47,0.1]
[1756893951724,96.21460867,209.48,209.47,0.1]
[1756893952020,100.98833408,209.48,209.47,0.1]
[1756893953414,59.01148793,209.48,209.47,0.1]
[1756893953604,100.98833408,209.48,209.47,0.1]
[1756893954033,63.48833408,209.48,209.47,0.1]
[1756893954221,100.98833408,209.48,209.47,0.1]
[1756893956610,63.48833408,209.48,209.47,0.1]
[1756893956811,100.98833408,209.48,209.47,0.1]
[1756893959511,63.48833408,209.48,209.47,0.82]
[1756893959713,100.98833408,209.48,209.47,0.1]
[1756893960235,63.48833408,209.48,209.47,0.1]
[1756893960407,100.98833408,209.48,209.47,0.82]
[1756893960607,63.48833408,209.48,209.47,0.82]
[1756893960814,86.63048871,209.48,209.47,0.82]
[1756893961019,86.63048871,209.48,209.47,0.1]
[1756893961427,86.63048871,209.48,209.47,0.82]
[1756893961628,86.63048871,209.48,209.47,0.1]
[1756893962034,100.98833408,209.48,209.47,0.1]
[1756893962823,39.59559401,209.45,209.41,20.72]
[1756893963028,18.07244016,209.42,209.41,20.72]
[1756893963227,18.07244016,209.42,209.37,0.1]
[1756893963228,13.59559401,209.41,209.37,0.1]
[1756893963432,18.07244016,209.38,209.37,0.1]
[1756893963920,4.47684615,209.4,209.37,0.82]
[1756893964123,37.5,209.41,209.39,20.0]
[1756893964325,37.5,209.41,209.39,20.72]
[1756893964519,26.0,209.43,209.39,20.72]
[1756893964728,26.0,209.43,209.4,0.72]
[1756893964926,37.5,209.42,209.4,0.72]
[1756893965132,30.77484869,209.44,209.4,0.72]
[1756893965433,4.47684615,209.41,209.4,0.72]
[1756893965641,41.97684615,209.41,209.4,0.72]
[1756893965936,13.59559401,209.41,209.4,0.72]
[1756893966142,55.57244016,209.41,209.4,0.72]
[1756893967046,55.8567633,209.41,209.4,0.72]
[1756893968438,60.63208444,209.41,209.4,0.72]
[1756893969345,55.8567633,209.41,209.4,0.72]
[1756893973840,51.37991715,209.41,209.4,0.72]
[1756893974241,55.8567633,209.41,209.4,0.72]
[1756893975544,13.87991715,209.41,209.4,0.72]
[1756893975748,51.37991715,209.41,209.4,0.72]
[1756893976045,14.35921982,209.46,209.41,20.0]
[1756893976254,18.07244016,209.43,209.42,0.66]
[1756893976549,13.59559401,209.42,209.41,20.0]
[1756893977258,13.59559401,209.42,209.41,20.66]
[1756893977859,22.84753327,209.42,209.41,20.66]
[1756893978033,22.84753327,209.42,209.39,20.0]
[1756893978236,18.07244016,209.4,209.39,20.0]
[1756893978433,13.59559401,209.39,209.37,20.1]
[1756893978724,55.57244016,209.38,209.37,20.1]
[1756893979244,55.57244016,209.38,209.37,0.1]
[1756893979445,60.3484455,209.38,209.37,0.1]
[1756893980026,55.8567633,209.38,209.37,0.76]
[1756893980928,60.63276864,209.38,209.37,0.1]
[1756893983247,23.13276864,209.38,209.37,0.1]
[1756893983546,60.63276864,209.38,209.37,0.1]
[1756893983946,18.3567633,209.38,209.37,0.1]
[1756893984142,55.8567633,209.38,209.37,0.76]
[1756893984840,51.37991715,209.38,209.37,0.76]
[1756893985042,55.8567633,209.38,209.37,20.76]
[1756893986250,55.8567633,209.38,209.37,20.1]
[1756893986638,60.63276864,209.38,209.37,20.1]
[1756893987435,59.02832294,209.38,209.37,20.1]
[1756893989453,100.07304319,209.38,209.37,0.1]
[1756893989663,74.07304319,209.38,209.37,0.1]
[1756893989868,39.59559401,209.35,209.34,0.03]
[1756893990045,79.96799446,209.35,209.34,0.03]
[1756893990370,80.64799446,209.35,209.34,0.03]
[1756893990535,43.14799446,209.35,209.34,0.03]
[1756893990736,42.46799446,209.35,209.34,0.03]
[1756893990940,80.64799446,209.35,209.34,0.03]
[1756893991531,85.70900735,209.35,209.34,0.03]
[1756893992643,44.6566069,209.35,209.34,0.03]
[1756893992938,85.02900735,209.35,209.34,0.03]
[1756893998741,85.70900735,209.35,209.34,0.03]
[1756893998946,87.62457855,209.35,209.34,0.03]
[1756894000071,50.12457855,209.35,209.34,0.03]
[1756894000247,86.94457855,209.35,209.34,0.03]
[1756894002537,49.44457855,209.35,209.34,0.03]
[1756894002868,86.94457855,209.35,209.34,0.03]
[1756894004164,87.62457855,209.35,209.34,0.03]
[1756894004667,86.94457855,209.35,209.34,0.03]
[1756894005063,41.79548835,209.35,209.34,0.03]
[1756894005259,41.79548835,209.35,209.34,0.69]
[1756894005260,80.2523176,209.35,209.34,0.69]
[1756894005441,84.74468421,209.35,209.34,0.69]
[1756894007460,77.09559401,209.35,209.34,0.69]
[1756894007647,77.37991715,209.35,209.34,0.69]
[1756894007850,44.6566069,209.35,209.34,0.03]
[1756894008048,82.1566069,209.35,209.34,0.03]
[1756894008767,85.02900735,209.35,209.34,0.03]
[1756894010971,47.52900735,209.35,209.34,0.03]
[1756894011150,85.02900735,209.35,209.34,0.69]
[1756894012156,39.87991715,209.35,209.34,0.69]
[1756894012356,0.06,209.37,209.34,0.69]
[1756894012558,51.15559401,209.37,209.36,20.0]
[1756894012764,13.65559401,209.37,209.36,20.66]
[1756894012960,0.06,209.37,209.36,20.66]
[1756894015050,37.56,209.37,209.36,20.66]
[1756894015255,54.02799446,209.37,209.36,20.0]
[1756894015658,51.43991715,209.37,209.36,20.66]
[1756894015864,13.93991715,209.37,209.36,20.66]
[1756894017089,0.06,209.37,209.36,20.66]
[1756894018191,13.65559401,209.37,209.36,20.66]
[1756894019584,18.43182747,209.37,209.36,20.66]
[1756894019967,21.30422792,209.37,209.36,20.0]
[1756894020164,21.30422792,209.37,209.34,20.03]
[1756894020407,18.43182747,209.37,209.36,20.0]
[1756894020599,56.21615061,209.37,209.36,20.66]
[1756894021872,13.93991715,209.37,209.36,20.66]
[1756894022068,0.06,209.37,209.36,20.66]
[1756894022378,0.06,209.37,209.36,23.53240045]
[1756894022879,0.06,209.37,209.36,20.66]
[1756894023089,0.06,209.37,209.36,28.30886204]
[1756894023288,0.06,209.37,209.36,20.66]
[1756894023874,0.06,209.37,209.36,19.16]
[1756894026295,0.06,209.37,209.36,22.03240045]
[1756894026502,0.06,209.37,209.36,26.80886204]
[1756894027199,0.06,209.37,209.36,23.93646159]
[1756894027375,0.06,209.37,209.36,26.80886204]
[1756894029205,0.06,209.37,209.36,23.93646159]
[1756894029386,0.06,209.37,209.36,26.80886204]
[1756894030392,0.06,209.37,209.36,19.16]
[1756894031306,0.06,209.37,209.36,22.03240045]
[1756894031487,0.06,209.37,209.36,26.80886204]
[1756894031804,0.06,209.37,209.36,49.93646159]
[1756894032018,0.06,209.37,209.36,52.80886204]
[1756894033182,0.06,209.37,209.36,64.28886204]
[1756894033387,0.06,209.37,209.36,61.41646159]
[1756894034002,0.06,209.37,209.36,19.16]
[1756894035202,0.06,209.37,209.36,23.93646159]
[1756894035505,0.06,209.37,209.36,26.80886204]
[1756894035708,0.06,209.37,209.36,26.83886204]
[1756894035883,0.06,209.37,209.36,64.31886204]
[1756894036197,0.06,209.37,209.36,61.44646159]
[1756894036503,0.06,209.37,209.36,26.83886204]
[1756894036688,0.06,209.37,209.36,56.67]
[1756894036889,0.06,209.37,209.36,56.7]
[1756894037886,0.06,209.37,209.36,64.34886204]
[1756894038388,0.06,209.37,209.36,67.22126249]
[1756894041786,0.06,209.4,209.36,67.22126249]
[1756894041787,0.06,209.4,209.39,44.5]
[1756894041984,0.06,209.4,209.39,47.37240045]
[1756894042310,0.06,209.4,209.39,85.54240045]
[1756894042715,0.06,209.4,209.39,48.06240045]
[1756894042889,0.06,209.4,209.39,45.19]
[1756894043092,0.06,209.4,209.39,49.96577725]
[1756894043294,0.06,209.4,209.39,86.75577725]
[1756894043705,0.06,209.4,209.39,60.75577725]
[1756894044408,0.06,209.4,209.39,64.3181777]
[1756894044788,0.06,209.4,209.39,18.5]
[1756894044988,0.74,209.4,209.39,18.5]
[1756894045200,0.06,209.4,209.39,18.5]
[1756894050133,5.22509999,209.4,209.39,18.5]
[1756894051501,5.22509999,209.4,209.39,17.5]
[1756894052703,5.22509999,209.4,209.37,17.5]
[1756894052905,0.74,209.4,209.39,17.5]
[1756894053096,0.06,209.4,209.39,17.5]
[1756894055207,19.10501714,209.4,209.39,17.5]
[1756894055909,14.61991715,209.4,209.39,17.5]
[1756894056220,4.54509999,209.4,209.39,17.5]
[1756894056718,5.22509999,209.4,209.39,17.5]
[1756894056913,10.00064917,209.4,209.39,17.5]
[1756894057602,10.28497231,209.4,209.39,17.5]
[1756894057802,19.10501714,209.4,209.39,17.5]
[1756894058004,23.88056632,209.4,209.39,17.5]
[1756894060217,13.87991715,209.39,209.37,17.5]
[1756894060425,9.54542847,209.38,209.37,17.5]
[1756894061297,4.76942313,209.38,209.37,17.5]
[1756894061643,0.06,209.4,209.39,17.5]
[1756894061803,0.06,209.4,209.39,18.19]
[1756894062008,4.54509999,209.4,209.39,17.5]
[1756894062226,9.32064917,209.4,209.39,17.5]
[1756894062730,0.06,209.4,209.39,17.5]
[1756894062901,4.54509999,209.4,209.39,17.5]
[1756894063923,4.82942313,209.4,209.39,17.5]
[1756894064121,4.82942313,209.4,209.37,17.5]
[1756894064319,4.48509999,209.38,209.37,17.5]
[1756894064708,9.26110533,209.38,209.37,17.5]
[1756894065032,4.48509999,209.38,209.37,17.5]
[1756894065523,4.48509999,209.39,209.37,17.5]
[1756894066101,4.48509999,209.38,209.37,17.5]
[1756894067129,9.26110533,209.38,209.37,17.5]
[1756894068503,13.59559401,209.37,209.36,0.03]
[1756894068702,18.780694,209.37,209.36,0.03]
[1756894071629,18.36501714,209.37,209.36,0.03]
[1756894072014,18.36501714,209.37,209.36,0.72]
[1756894072514,18.36501714,209.37,209.36,0.03]
[1756894073129,26.06,209.4,209.36,0.03]
[1756894073130,0.06,209.4,209.36,0.03]